[Event "*** Titled Tuesday Blitz"]
[Site "Chess.com"]
[Date "2020.04.14"]
[Round "6"]
[White "NTBT_DHS"]
[Black "BabyBoss31"]
[Result "1-0"]
[WhiteElo "2549"]
[BlackElo "2346"]
[TimeControl "180+1"]
[EndTime "11:03:17 PDT"]
[Termination "NTBT_DHS won by checkmate"]

1. d4 {[%clk 0:02:58.5]} 1... d5 {[%clk 0:02:59.9]} 2. c4 {[%clk 0:02:58.4]}
2... Nc6 {[%clk 0:02:56.2]} 3. Nc3 {[%clk 0:02:56.9]} 3... e5 {[%clk 0:02:55.7]}
4. cxd5 {[%clk 0:02:51.9]} 4... Nxd4 {[%clk 0:02:53.8]} 5. Nf3 {[%clk
0:02:50.1]} 5... Nxf3+ {[%clk 0:02:51.3]} 6. exf3 {[%clk 0:02:50.4]} 6... Nf6
{[%clk 0:02:50.9]} 7. Bb5+ {[%clk 0:02:50.1]} 7... Bd7 {[%clk 0:02:45.3]} 8. Qe2
{[%clk 0:02:50]} 8... Bd6 {[%clk 0:02:40.2]} 9. f4 {[%clk 0:02:50.3]} 9... Qe7
{[%clk 0:02:39]} 10. fxe5 {[%clk 0:02:48.7]} 10... Qxe5 {[%clk 0:02:37]} 11.
Bxd7+ {[%clk 0:02:44.9]} 11... Kxd7 {[%clk 0:02:33.5]} 12. Be3 {[%clk
0:02:43.6]} 12... Rae8 {[%clk 0:02:22.2]} 13. O-O-O {[%clk 0:02:33.3]} 13... a6
{[%clk 0:02:18.7]} 14. Rhe1 {[%clk 0:02:22.4]} 14... Kc8 {[%clk 0:02:14.7]} 15.
Qd3 {[%clk 0:02:20]} 15... Qxh2 {[%clk 0:02:03.9]} 16. g3 {[%clk 0:02:08.7]}
16... Qh5 {[%clk 0:01:46.5]} 17. Qd4 {[%clk 0:02:07.2]} 17... Kd7 {[%clk
0:01:22.2]} 18. Kb1 {[%clk 0:02:02.4]} 18... Qf5+ {[%clk 0:01:09.5]} 19. Ka1
{[%clk 0:02:00.8]} 19... Ng4 {[%clk 0:01:04.6]} 20. Bf4 {[%clk 0:01:46.1]} 20...
Ne5 {[%clk 0:00:44.5]} 21. Ne4 {[%clk 0:01:30.7]} 21... g5 {[%clk 0:00:23.4]}
22. Bxe5 {[%clk 0:01:22.5]} 22... Bxe5 {[%clk 0:00:20.3]} 23. Qd3 {[%clk
0:01:13.8]} 23... Qg6 {[%clk 0:00:16.3]} 24. d6 {[%clk 0:01:13.5]} 24... Bxd6
{[%clk 0:00:13.7]} 25. Rc1 {[%clk 0:01:02.3]} 25... Re5 {[%clk 0:00:04.7]} 26.
f4 {[%clk 0:00:40.4]} 26... gxf4 {[%clk 0:00:04.5]} 27. gxf4 {[%clk 0:00:41.3]}
27... Rb5 {[%clk 0:00:04]} 28. Qc3 {[%clk 0:00:19.9]} 28... Re8 {[%clk
0:00:01.8]} 29. Nf6+ {[%clk 0:00:19.3]} 29... Kd8 {[%clk 0:00:01.6]} 30. Rxe8#
{[%clk 0:00:18.8]} 1-0

[Event "*** Titled Tuesday Blitz"]
[Site "Chess.com"]
[Date "2020.04.14"]
[Round "6"]
[White "Bacyanide"]
[Black "SaguriGuerra"]
[Result "0-1"]
[WhiteElo "2330"]
[BlackElo "2523"]
[TimeControl "180+1"]
[EndTime "11:03:17 PDT"]
[Termination "SaguriGuerra won by checkmate"]

1. d4 {[%clk 0:03:00.9]} 1... d6 {[%clk 0:02:59.6]} 2. c4 {[%clk 0:03:00.1]}
2... e5 {[%clk 0:02:59.6]} 3. Nc3 {[%clk 0:02:58.1]} 3... exd4 {[%clk
0:02:59.4]} 4. Qxd4 {[%clk 0:02:59]} 4... Nc6 {[%clk 0:02:59.6]} 5. Qd2 {[%clk
0:02:59.5]} 5... Nf6 {[%clk 0:02:58.8]} 6. b3 {[%clk 0:02:59]} 6... Be6 {[%clk
0:02:52.5]} 7. e4 {[%clk 0:02:58.1]} 7... a5 {[%clk 0:02:51.2]} 8. Bd3 {[%clk
0:02:48]} 8... g6 {[%clk 0:02:45]} 9. Bb2 {[%clk 0:02:47.1]} 9... Bg7 {[%clk
0:02:44.8]} 10. Nge2 {[%clk 0:02:46.4]} 10... O-O {[%clk 0:02:45.3]} 11. O-O
{[%clk 0:02:46.4]} 11... Ng4 {[%clk 0:02:20.8]} 12. Nd5 {[%clk 0:02:40.2]} 12...
Nge5 {[%clk 0:02:16.2]} 13. f4 {[%clk 0:01:51.9]} 13... Nxd3 {[%clk 0:02:14.1]}
14. Bxg7 {[%clk 0:01:52.4]} 14... Kxg7 {[%clk 0:02:14]} 15. Qxd3 {[%clk
0:01:52.6]} 15... Bxd5 {[%clk 0:01:56.2]} 16. cxd5 {[%clk 0:01:51.8]} 16... Nb4
{[%clk 0:01:56.8]} 17. Qc3+ {[%clk 0:01:36.1]} 17... f6 {[%clk 0:01:56.2]} 18.
Nd4 {[%clk 0:01:27.5]} 18... Qe7 {[%clk 0:01:56]} 19. Ne6+ {[%clk 0:01:26.2]}
19... Kf7 {[%clk 0:01:56.9]} 20. Nxf8 {[%clk 0:01:14.4]} 20... Kxf8 {[%clk
0:01:57.8]} 21. Rae1 {[%clk 0:01:13.9]} 21... Nxa2 {[%clk 0:01:44.7]} 22. Qf3
{[%clk 0:01:03.7]} 22... Kg8 {[%clk 0:01:40.4]} 23. e5 {[%clk 0:01:02.1]} 23...
dxe5 {[%clk 0:01:40.2]} 24. fxe5 {[%clk 0:01:00]} 24... fxe5 {[%clk 0:01:40.5]}
25. d6 {[%clk 0:00:35.7]} 25... cxd6 {[%clk 0:01:40]} 26. Qd5+ {[%clk
0:00:23.6]} 26... Kg7 {[%clk 0:01:39.2]} 27. Rf2 {[%clk 0:00:19.8]} 27... Nb4
{[%clk 0:01:37.1]} 28. Qb5 {[%clk 0:00:19.9]} 28... Rf8 {[%clk 0:01:15]} 29.
Rxf8 {[%clk 0:00:17.5]} 29... Kxf8 {[%clk 0:01:15.9]} 30. Qxa5 {[%clk
0:00:17.6]} 30... Nc6 {[%clk 0:01:16.4]} 31. Qd5 {[%clk 0:00:17]} 31... Kg7
{[%clk 0:01:16]} 32. Rf1 {[%clk 0:00:17.3]} 32... Nd4 {[%clk 0:01:15.6]} 33. b4
{[%clk 0:00:17]} 33... Nf5 {[%clk 0:01:06.2]} 34. Kh1 {[%clk 0:00:16.5]} 34...
Ne3 {[%clk 0:01:05.7]} 35. Qf3 {[%clk 0:00:13.2]} 35... Nxf1 {[%clk 0:01:06]}
36. Qxf1 {[%clk 0:00:14.1]} 36... d5 {[%clk 0:01:06.6]} 37. Qe1 {[%clk
0:00:11.4]} 37... e4 {[%clk 0:01:05.1]} 38. h3 {[%clk 0:00:12.3]} 38... Qe5
{[%clk 0:01:05.1]} 39. Qc1 {[%clk 0:00:11.1]} 39... d4 {[%clk 0:01:04.6]} 40.
Qc8 {[%clk 0:00:11.6]} 40... Qe7 {[%clk 0:00:58.8]} 41. Qc5 {[%clk 0:00:10.2]}
41... Qxc5 {[%clk 0:00:57.8]} 42. bxc5 {[%clk 0:00:09.9]} 42... d3 {[%clk
0:00:58.1]} 43. Kg1 {[%clk 0:00:09.3]} 43... d2 {[%clk 0:00:57.5]} 44. Kf2
{[%clk 0:00:10.2]} 44... d1=Q {[%clk 0:00:57.6]} 45. Ke3 {[%clk 0:00:11.1]}
45... Qd3+ {[%clk 0:00:57.5]} 46. Kf4 {[%clk 0:00:11.2]} 46... e3 {[%clk
0:00:57.7]} 47. Ke5 {[%clk 0:00:12.1]} 47... e2 {[%clk 0:00:57.7]} 48. Ke6
{[%clk 0:00:13]} 48... e1=Q# {[%clk 0:00:57.8]} 0-1

[Event "*** Titled Tuesday Blitz"]
[Site "Chess.com"]
[Date "2020.04.14"]
[Round "6"]
[White "DinaBelenkaya"]
[Black "PrinceCharming92"]
[Result "1-0"]
[WhiteElo "2188"]
[BlackElo "2305"]
[TimeControl "180+1"]
[EndTime "11:03:17 PDT"]
[Termination "DinaBelenkaya won by resignation"]

1. e4 {[%clk 0:03:00.9]} 1... d5 {[%clk 0:02:55.2]} 2. exd5 {[%clk 0:02:53]}
2... Qxd5 {[%clk 0:02:45.3]} 3. Nf3 {[%clk 0:02:52.8]} 3... Nf6 {[%clk
0:02:44.8]} 4. Be2 {[%clk 0:02:51.9]} 4... c6 {[%clk 0:02:44.8]} 5. O-O {[%clk
0:02:47.6]} 5... Bf5 {[%clk 0:02:41.3]} 6. d4 {[%clk 0:02:42.8]} 6... e6 {[%clk
0:02:40.1]} 7. c4 {[%clk 0:02:42.3]} 7... Qd8 {[%clk 0:02:40]} 8. Nc3 {[%clk
0:02:42.7]} 8... Be7 {[%clk 0:02:39.2]} 9. h3 {[%clk 0:02:42.7]} 9... O-O {[%clk
0:02:38.7]} 10. Bf4 {[%clk 0:02:40.5]} 10... Nbd7 {[%clk 0:02:30]} 11. Qd2
{[%clk 0:02:40.6]} 11... Bg6 {[%clk 0:02:27.9]} 12. Rfd1 {[%clk 0:02:38]} 12...
Re8 {[%clk 0:02:28.5]} 13. Nh4 {[%clk 0:02:26.2]} 13... Rc8 {[%clk 0:02:27]} 14.
Nxg6 {[%clk 0:02:25.5]} 14... hxg6 {[%clk 0:02:27.9]} 15. a3 {[%clk 0:02:15.9]}
15... c5 {[%clk 0:02:17.2]} 16. dxc5 {[%clk 0:02:13.6]} 16... Nxc5 {[%clk
0:02:17.6]} 17. Qe3 {[%clk 0:02:04.2]} 17... Qb6 {[%clk 0:02:10.9]} 18. b4
{[%clk 0:02:03.4]} 18... Ncd7 {[%clk 0:01:20.2]} 19. c5 {[%clk 0:02:02.8]} 19...
Nxc5 {[%clk 0:01:05.4]} 20. bxc5 {[%clk 0:01:55.8]} 20... Bxc5 {[%clk 0:01:05]}
21. Qf3 {[%clk 0:01:54]} 21... Bxf2+ {[%clk 0:00:54.1]} 22. Qxf2 {[%clk
0:01:52.5]} 22... Qxf2+ {[%clk 0:00:53.7]} 23. Kxf2 {[%clk 0:01:52]} 23... Rxc3
{[%clk 0:00:54.3]} 24. Bf3 {[%clk 0:01:47]} 24... b5 {[%clk 0:00:45.4]} 25. Be5
{[%clk 0:01:41.4]} 25... Rc2+ {[%clk 0:00:44.6]} 26. Kg3 {[%clk 0:01:38.2]}
26... Rec8 {[%clk 0:00:37.1]} 27. Rab1 {[%clk 0:01:36.8]} 27... a6 {[%clk
0:00:35.7]} 28. Bb7 {[%clk 0:01:32.8]} 28... R8c5 {[%clk 0:00:31.4]} 29. Bd4
{[%clk 0:01:15.3]} 29... Rg5+ {[%clk 0:00:28.1]} 30. Kh2 {[%clk 0:01:15.4]}
30... Nd5 {[%clk 0:00:26]} 31. Bxd5 {[%clk 0:00:53.6]} 31... Rxd5 {[%clk
0:00:26.9]} 32. Be3 {[%clk 0:00:28.2]} 32... Re5 {[%clk 0:00:22.4]} 33. Rd2
{[%clk 0:00:19.5]} 33... Ra2 {[%clk 0:00:18.9]} 34. Rxa2 {[%clk 0:00:18.6]}
34... Rxe3 {[%clk 0:00:18.5]} 35. Rd1 {[%clk 0:00:18]} 1-0

[Event "*** Titled Tuesday Blitz"]
[Site "Chess.com"]
[Date "2020.04.14"]
[Round "6"]
[White "frankshar"]
[Black "JacekDubiel"]
[Result "0-1"]
[WhiteElo "2249"]
[BlackElo "2429"]
[TimeControl "180+1"]
[EndTime "11:03:18 PDT"]
[Termination "JacekDubiel won by resignation"]

1. d4 {[%clk 0:03:00.9]} 1... Nf6 {[%clk 0:02:59.9]} 2. c4 {[%clk 0:03:00.8]}
2... e6 {[%clk 0:03:00.4]} 3. Nf3 {[%clk 0:03:01.1]} 3... Bb4+ {[%clk
0:03:00.1]} 4. Bd2 {[%clk 0:03:00.8]} 4... Qe7 {[%clk 0:02:59.9]} 5. g3 {[%clk
0:02:59.6]} 5... Nc6 {[%clk 0:02:59]} 6. Bg2 {[%clk 0:02:58.2]} 6... Bxd2+
{[%clk 0:02:58.9]} 7. Nbxd2 {[%clk 0:02:38.6]} 7... d6 {[%clk 0:02:58.6]} 8. O-O
{[%clk 0:02:38.6]} 8... a5 {[%clk 0:02:58.8]} 9. Qa4 {[%clk 0:02:23.3]} 9... O-O
{[%clk 0:02:56.9]} 10. a3 {[%clk 0:02:15.4]} 10... e5 {[%clk 0:02:48.1]} 11.
dxe5 {[%clk 0:02:09.6]} 11... dxe5 {[%clk 0:02:46]} 12. b4 {[%clk 0:01:55.7]}
12... e4 {[%clk 0:02:36.9]} 13. Ng5 {[%clk 0:01:47.3]} 13... e3 {[%clk
0:02:16.5]} 14. Nde4 {[%clk 0:01:44.7]} 14... exf2+ {[%clk 0:02:14.1]} 15. Rxf2
{[%clk 0:01:42.9]} 15... Ng4 {[%clk 0:02:03.1]} 16. Rf4 {[%clk 0:01:32.5]} 16...
h6 {[%clk 0:01:55.4]} 17. Nh3 {[%clk 0:01:07.9]} 17... g5 {[%clk 0:01:32.9]} 18.
Rff1 {[%clk 0:00:38.2]} 18... Ne3 {[%clk 0:01:19.6]} 19. Nf6+ {[%clk 0:00:34.3]}
19... Kg7 {[%clk 0:01:17.2]} 20. Nh5+ {[%clk 0:00:30.1]} 20... Kg6 {[%clk
0:00:51.9]} 21. Rf6+ {[%clk 0:00:17.7]} 21... Kxh5 {[%clk 0:00:52.2]} 22. Bf3+
{[%clk 0:00:15.5]} 22... g4 {[%clk 0:00:37.4]} 23. Qb5+ {[%clk 0:00:13]} 23...
Qe5 {[%clk 0:00:33.8]} 24. Bxc6 {[%clk 0:00:05.5]} 24... Qxb5 {[%clk 0:00:33.5]}
25. Bxb5 {[%clk 0:00:04.9]} 25... gxh3 {[%clk 0:00:32.2]} 26. Rc1 {[%clk
0:00:02.8]} 26... Kg5 {[%clk 0:00:30.9]} 27. Rf4 {[%clk 0:00:02.2]} 27... axb4
{[%clk 0:00:24.4]} 28. axb4 {[%clk 0:00:01.7]} 28... c6 {[%clk 0:00:22.3]} 29.
c5 {[%clk 0:00:02.1]} 0-1

[Event "*** Titled Tuesday Blitz"]
[Site "Chess.com"]
[Date "2020.04.14"]
[Round "6"]
[White "steepedgames"]
[Black "dmvlad"]
[Result "1-0"]
[WhiteElo "2428"]
[BlackElo "2280"]
[TimeControl "180+1"]
[EndTime "11:03:18 PDT"]
[Termination "steepedgames won by resignation"]

1. e4 {[%clk 0:03:00.9]} 1... c6 {[%clk 0:02:58.3]} 2. Nc3 {[%clk 0:02:56.8]}
2... d5 {[%clk 0:02:53.9]} 3. Nf3 {[%clk 0:02:57.7]} 3... Bg4 {[%clk 0:02:53.3]}
4. h3 {[%clk 0:02:54.5]} 4... Bxf3 {[%clk 0:02:52.9]} 5. Qxf3 {[%clk 0:02:54.4]}
5... e6 {[%clk 0:02:53.8]} 6. g3 {[%clk 0:02:52.4]} 6... Nf6 {[%clk 0:02:53.5]}
7. Bg2 {[%clk 0:02:52.4]} 7... Be7 {[%clk 0:02:52.4]} 8. O-O {[%clk 0:02:52.5]}
8... O-O {[%clk 0:02:52.4]} 9. d3 {[%clk 0:02:53.1]} 9... Nbd7 {[%clk
0:02:49.8]} 10. Bd2 {[%clk 0:02:52.2]} 10... a6 {[%clk 0:02:49.4]} 11. Rae1
{[%clk 0:02:49.5]} 11... b5 {[%clk 0:02:49.4]} 12. e5 {[%clk 0:02:49.1]} 12...
Ne8 {[%clk 0:02:48.7]} 13. Qh5 {[%clk 0:02:40.2]} 13... b4 {[%clk 0:02:12.6]}
14. Nd1 {[%clk 0:02:37.4]} 14... a5 {[%clk 0:02:12.9]} 15. f4 {[%clk 0:02:36.4]}
15... g6 {[%clk 0:02:01.2]} 16. Qf3 {[%clk 0:02:25.3]} 16... Nc7 {[%clk
0:01:58.1]} 17. g4 {[%clk 0:02:22.7]} 17... Bh4 {[%clk 0:01:52.9]} 18. Re2
{[%clk 0:02:19.2]} 18... Nb5 {[%clk 0:01:49.8]} 19. Be3 {[%clk 0:02:15.4]} 19...
c5 {[%clk 0:01:28.1]} 20. Kh1 {[%clk 0:02:13]} 20... Be7 {[%clk 0:01:07.6]} 21.
Bg1 {[%clk 0:02:10.4]} 21... Nd4 {[%clk 0:01:02.2]} 22. Bxd4 {[%clk 0:02:09]}
22... cxd4 {[%clk 0:01:02.3]} 23. f5 {[%clk 0:02:08.6]} 23... Rc8 {[%clk
0:00:22.5]} 24. f6 {[%clk 0:02:06.4]} 24... Bc5 {[%clk 0:00:22.4]} 25. Nf2
{[%clk 0:01:59.2]} 25... Qc7 {[%clk 0:00:20.1]} 26. Qf4 {[%clk 0:01:54.5]} 26...
Rfe8 {[%clk 0:00:20.2]} 27. g5 {[%clk 0:01:53.4]} 27... Bf8 {[%clk 0:00:19.8]}
28. Ng4 {[%clk 0:01:53.4]} 28... Qc5 {[%clk 0:00:18.5]} 29. h4 {[%clk
0:01:50.5]} 29... Rc6 {[%clk 0:00:18.5]} 30. h5 {[%clk 0:01:50.6]} 30... gxh5
{[%clk 0:00:17.8]} 31. Nh6+ {[%clk 0:01:43.3]} 31... Bxh6 {[%clk 0:00:15.5]} 32.
gxh6 {[%clk 0:01:44.2]} 32... Kh8 {[%clk 0:00:15.9]} 33. Bf3 {[%clk 0:01:44.5]}
33... Rg8 {[%clk 0:00:15.7]} 34. Bxh5 {[%clk 0:01:43.6]} 34... Qf8 {[%clk
0:00:13.6]} 35. Rg1 {[%clk 0:01:38.4]} 35... Rxg1+ {[%clk 0:00:12.4]} 36. Kxg1
{[%clk 0:01:39.3]} 36... Rc8 {[%clk 0:00:11.2]} 37. Qg5 {[%clk 0:01:37.8]} 37...
Qg8 {[%clk 0:00:11.1]} 38. Qg7+ {[%clk 0:00:59.7]} 38... Qxg7+ {[%clk 0:00:11]}
39. fxg7+ {[%clk 0:00:58.4]} 39... Kg8 {[%clk 0:00:11.8]} 40. Kg2 {[%clk
0:00:54]} 40... Rc6 {[%clk 0:00:10.8]} 41. Kg3 {[%clk 0:00:53.1]} 41... f6
{[%clk 0:00:09.8]} 42. Be8 {[%clk 0:00:49]} 42... Nxe5 {[%clk 0:00:04.3]} 43.
Bxc6 {[%clk 0:00:48.2]} 43... Nxc6 {[%clk 0:00:05.2]} 1-0

[Event "*** Titled Tuesday Blitz"]
[Site "Chess.com"]
[Date "2020.04.14"]
[Round "6"]
[White "Gabrielian_Artur"]
[Black "dukicz123"]
[Result "1-0"]
[WhiteElo "2677"]
[BlackElo "2555"]
[TimeControl "180+1"]
[EndTime "11:03:19 PDT"]
[Termination "Gabrielian_Artur won on time"]

1. e4 {[%clk 0:03:00.9]} 1... e5 {[%clk 0:02:59.7]} 2. Nc3 {[%clk 0:03:00.3]}
2... Nc6 {[%clk 0:02:59.7]} 3. g3 {[%clk 0:03:00.2]} 3... Bc5 {[%clk 0:02:53]}
4. Bg2 {[%clk 0:03:00.1]} 4... d6 {[%clk 0:02:51.9]} 5. d3 {[%clk 0:02:59.8]}
5... f5 {[%clk 0:02:50]} 6. Nge2 {[%clk 0:02:34.2]} 6... Nf6 {[%clk 0:02:48.4]}
7. O-O {[%clk 0:02:26.1]} 7... O-O {[%clk 0:02:30.6]} 8. Bg5 {[%clk 0:02:22.5]}
8... Nd4 {[%clk 0:01:55.7]} 9. Nxd4 {[%clk 0:02:21.1]} 9... Bxd4 {[%clk
0:01:56.6]} 10. Nd5 {[%clk 0:02:20]} 10... c6 {[%clk 0:01:54.5]} 11. Nxf6+
{[%clk 0:02:19.3]} 11... gxf6 {[%clk 0:01:55.4]} 12. Bh6 {[%clk 0:02:19.7]}
12... Rf7 {[%clk 0:01:51.7]} 13. c3 {[%clk 0:02:19.9]} 13... Bb6 {[%clk
0:01:51.3]} 14. a4 {[%clk 0:02:13.4]} 14... Be6 {[%clk 0:01:40.6]} 15. b4 {[%clk
0:02:04.3]} 15... d5 {[%clk 0:01:33.7]} 16. a5 {[%clk 0:02:02.3]} 16... Bc7
{[%clk 0:01:33.9]} 17. a6 {[%clk 0:02:02.2]} 17... b6 {[%clk 0:01:30]} 18. Qh5
{[%clk 0:01:54.4]} 18... fxe4 {[%clk 0:01:20.1]} 19. dxe4 {[%clk 0:01:54]} 19...
b5 {[%clk 0:00:55.8]} 20. Rad1 {[%clk 0:01:52.7]} 20... Qd7 {[%clk 0:00:48.2]}
21. exd5 {[%clk 0:01:47.9]} 21... cxd5 {[%clk 0:00:48]} 22. Rfe1 {[%clk
0:01:36.8]} 22... Rd8 {[%clk 0:00:46.8]} 23. h3 {[%clk 0:01:27.9]} 23... Qc6
{[%clk 0:00:37.1]} 24. Be3 {[%clk 0:00:52.3]} 24... Qxa6 {[%clk 0:00:22.7]} 25.
Ra1 {[%clk 0:00:51.8]} 25... Qc6 {[%clk 0:00:22.7]} 26. Rxa7 {[%clk 0:00:51]}
26... Qxc3 {[%clk 0:00:21.8]} 27. Rc1 {[%clk 0:00:50.7]} 27... Qxb4 {[%clk
0:00:17.2]} 28. Raxc7 {[%clk 0:00:49.5]} 28... d4 {[%clk 0:00:17.2]} 29. Bh6
{[%clk 0:00:46.2]} 29... Qd6 {[%clk 0:00:14.7]} 30. Rxf7 {[%clk 0:00:44]} 30...
Bxf7 {[%clk 0:00:15.6]} 31. Qg4+ {[%clk 0:00:44.3]} 31... Bg6 {[%clk 0:00:16.3]}
32. Be4 {[%clk 0:00:44.2]} 32... Kf7 {[%clk 0:00:13.7]} 33. Rc6 {[%clk
0:00:43.4]} 33... Qd7 {[%clk 0:00:11.6]} 34. Qf3 {[%clk 0:00:39.5]} 34... Qe7
{[%clk 0:00:07.9]} 35. Bd5+ {[%clk 0:00:38.5]} 35... Ke8 {[%clk 0:00:07]} 36.
Re6 {[%clk 0:00:38.5]} 1-0

[Event "*** Titled Tuesday Blitz"]
[Site "Chess.com"]
[Date "2020.04.14"]
[Round "6"]
[White "Keks2017"]
[Black "AliKa2810"]
[Result "1-0"]
[WhiteElo "2492"]
[BlackElo "2610"]
[TimeControl "180+1"]
[EndTime "11:03:19 PDT"]
[Termination "Keks2017 won on time"]

1. e4 {[%clk 0:02:59.9]} 1... e6 {[%clk 0:03:00.3]} 2. d3 {[%clk 0:02:59.5]}
2... d5 {[%clk 0:03:01.2]} 3. Nd2 {[%clk 0:02:58.9]} 3... Nf6 {[%clk 0:03:01]}
4. Ngf3 {[%clk 0:02:59]} 4... c5 {[%clk 0:03:01]} 5. g3 {[%clk 0:02:58.7]} 5...
Nc6 {[%clk 0:03:01.2]} 6. Bg2 {[%clk 0:02:58.8]} 6... Be7 {[%clk 0:03:01.5]} 7.
O-O {[%clk 0:02:58.8]} 7... O-O {[%clk 0:03:02]} 8. Re1 {[%clk 0:02:58.9]} 8...
b5 {[%clk 0:03:00.9]} 9. e5 {[%clk 0:02:58.5]} 9... Nd7 {[%clk 0:03:00.3]} 10.
Nf1 {[%clk 0:02:58.5]} 10... a5 {[%clk 0:02:58.8]} 11. h4 {[%clk 0:02:58.4]}
11... a4 {[%clk 0:02:57.4]} 12. h5 {[%clk 0:02:58.1]} 12... h6 {[%clk 0:02:57]}
13. N1h2 {[%clk 0:02:56.7]} 13... a3 {[%clk 0:02:56.9]} 14. b3 {[%clk
0:02:55.8]} 14... Re8 {[%clk 0:02:50.8]} 15. c3 {[%clk 0:02:53.3]} 15... Qc7
{[%clk 0:02:50.1]} 16. Bf4 {[%clk 0:02:51.8]} 16... Bb7 {[%clk 0:02:45]} 17. Qe2
{[%clk 0:02:51.4]} 17... d4 {[%clk 0:02:44.6]} 18. c4 {[%clk 0:02:50.3]} 18...
bxc4 {[%clk 0:02:40.9]} 19. bxc4 {[%clk 0:02:49.8]} 19... Bf8 {[%clk 0:02:37.4]}
20. Nd2 {[%clk 0:02:46.2]} 20... Nb4 {[%clk 0:02:36.4]} 21. Ne4 {[%clk
0:02:44.8]} 21... Bc6 {[%clk 0:02:20]} 22. Ng4 {[%clk 0:02:36.6]} 22... Kh8
{[%clk 0:02:18.8]} 23. Rad1 {[%clk 0:02:29.8]} 23... Qb7 {[%clk 0:02:18.4]} 24.
Rd2 {[%clk 0:02:28.6]} 24... Reb8 {[%clk 0:02:15]} 25. Nh2 {[%clk 0:02:23.9]}
25... Ra6 {[%clk 0:02:12.5]} 26. g4 {[%clk 0:02:23.4]} 26... Be7 {[%clk
0:02:01.8]} 27. Bg3 {[%clk 0:02:19.6]} 27... Rb6 {[%clk 0:01:48.9]} 28. f4
{[%clk 0:02:17.4]} 28... Qa6 {[%clk 0:01:04.3]} 29. Qf2 {[%clk 0:01:59.6]} 29...
Nxd3 {[%clk 0:00:54.4]} 30. Rxd3 {[%clk 0:01:58.4]} 30... Rb2 {[%clk 0:00:55.3]}
31. Rd2 {[%clk 0:01:48]} 31... Qxc4 {[%clk 0:00:53.5]} 32. f5 {[%clk 0:01:40.4]}
32... Qxa2 {[%clk 0:00:28.1]} 33. f6 {[%clk 0:01:37.9]} 33... Bf8 {[%clk
0:00:28.3]} 34. g5 {[%clk 0:01:34.8]} 34... Bxe4 {[%clk 0:00:22.3]} 35. Bxe4
{[%clk 0:01:29.5]} 35... Rxd2 {[%clk 0:00:22.1]} 36. fxg7+ {[%clk 0:01:29.2]}
36... Bxg7 {[%clk 0:00:21.8]} 37. Qxf7 {[%clk 0:01:28.8]} 37... Nf8 {[%clk
0:00:10.5]} 38. Ng4 {[%clk 0:01:17.4]} 38... Rb3 {[%clk 0:00:07.5]} 39. Bf2
{[%clk 0:01:12]} 39... Re2 {[%clk 0:00:07.5]} 40. gxh6 {[%clk 0:01:06.9]} 40...
Rxe1+ {[%clk 0:00:07.9]} 41. Bxe1 {[%clk 0:01:06.4]} 41... Bxh6 {[%clk
0:00:03.3]} 42. Nxh6 {[%clk 0:01:04]} 42... Rg3+ {[%clk 0:00:01.1]} 43. Bxg3
{[%clk 0:01:01.7]} 43... Qa1+ {[%clk 0:00:01.4]} 44. Kh2 {[%clk 0:01:01.3]}
44... Qb2+ {[%clk 0:00:01.8]} 45. Kh3 {[%clk 0:01:00.8]} 1-0

[Event "*** Titled Tuesday Blitz"]
[Site "Chess.com"]
[Date "2020.04.14"]
[Round "6"]
[White "LizaSolovyova"]
[Black "chito89"]
[Result "0-1"]
[WhiteElo "2601"]
[BlackElo "2788"]
[TimeControl "180+1"]
[EndTime "11:03:20 PDT"]
[Termination "chito89 won by resignation"]

1. d4 {[%clk 0:03:00.7]} 1... Nf6 {[%clk 0:02:38.6]} 2. Nc3 {[%clk 0:03:00.4]}
2... g6 {[%clk 0:02:36.3]} 3. e4 {[%clk 0:03:00.2]} 3... d6 {[%clk 0:02:36.8]}
4. Be3 {[%clk 0:02:59.7]} 4... c6 {[%clk 0:02:35]} 5. f3 {[%clk 0:02:59.1]} 5...
Nbd7 {[%clk 0:02:33.2]} 6. Qd2 {[%clk 0:02:58.9]} 6... b5 {[%clk 0:02:28.1]} 7.
a3 {[%clk 0:02:58.8]} 7... Nb6 {[%clk 0:02:23.8]} 8. b3 {[%clk 0:02:58.3]} 8...
Bg7 {[%clk 0:02:15.9]} 9. g4 {[%clk 0:02:54.9]} 9... h5 {[%clk 0:02:14.4]} 10.
g5 {[%clk 0:02:54.7]} 10... Nfd7 {[%clk 0:02:14.5]} 11. h4 {[%clk 0:02:54.9]}
11... O-O {[%clk 0:02:13.5]} 12. Nge2 {[%clk 0:02:52.9]} 12... e5 {[%clk
0:02:11.5]} 13. Bg2 {[%clk 0:02:52.2]} 13... a5 {[%clk 0:01:42.8]} 14. a4 {[%clk
0:02:32.8]} 14... b4 {[%clk 0:01:39.9]} 15. Nd1 {[%clk 0:02:32.3]} 15... exd4
{[%clk 0:01:24]} 16. Bxd4 {[%clk 0:02:31.2]} 16... Ne5 {[%clk 0:01:24.3]} 17. f4
{[%clk 0:02:24.9]} 17... c5 {[%clk 0:01:23.2]} 18. Bxe5 {[%clk 0:01:59.8]} 18...
dxe5 {[%clk 0:01:22]} 19. f5 {[%clk 0:01:51.2]} 19... Qxd2+ {[%clk 0:01:18.3]}
20. Kxd2 {[%clk 0:01:50.8]} 20... Rd8+ {[%clk 0:01:15.5]} 21. Ke1 {[%clk
0:01:47.1]} 21... c4 {[%clk 0:01:12.9]} 22. Ne3 {[%clk 0:01:44.1]} 22... Ba6
{[%clk 0:00:57.6]} 23. f6 {[%clk 0:01:33.4]} 23... Bf8 {[%clk 0:00:56.4]} 24.
Nd5 {[%clk 0:01:32.9]} 24... Bc5 {[%clk 0:00:48.8]} 25. Rd1 {[%clk 0:01:29.1]}
25... Kf8 {[%clk 0:00:35.5]} 26. Rh3 {[%clk 0:01:18.3]} 26... Rac8 {[%clk
0:00:32.8]} 27. Nc1 {[%clk 0:01:13.8]} 27... Nxd5 {[%clk 0:00:31]} 28. exd5
{[%clk 0:01:12.5]} 28... Bd4 {[%clk 0:00:30.6]} 29. Be4 {[%clk 0:01:07.5]} 29...
Bb7 {[%clk 0:00:26.9]} 30. bxc4 {[%clk 0:00:55.1]} 30... Rxc4 {[%clk 0:00:27.8]}
31. Nb3 {[%clk 0:00:53.6]} 31... Bxd5 {[%clk 0:00:24.5]} 32. Nxa5 {[%clk
0:00:49.3]} 32... Bc3+ {[%clk 0:00:23.4]} 33. Kf1 {[%clk 0:00:39.2]} 33... Rxe4
{[%clk 0:00:24.3]} 34. Rhd3 {[%clk 0:00:30.3]} 34... Bd4 {[%clk 0:00:24.2]} 0-1